fUST/lending_fUST_20250718
["ID","MTS","AMOUNT","RATE_DAILY","PERIOD"]
[372882341,1752791449901,-6548.0379443,0.0002249,7]
[372882342,1752791449912,-1006.43,0.000225,2]
[372882343,1752791449921,-159.7589233,0.00022521,2]
[372882344,1752791449931,-178.0508326,0.00022521,2]
[372882345,1752791449941,-576.958633,0.00022521,2]
[372882346,1752791449951,-1232.91,0.00022527,2]
[372882347,1752791449961,-155.619097,0.00022528,7]
[372882348,1752791449971,-151.0,0.00022528,7]
[372882349,1752791449980,-151.0,0.00022528,7]
[372882350,1752791449989,-151.0,0.00022528,7]
[372882351,1752791449999,-2148.08,0.00022528,2]
[372882352,1752791450009,-1518.61,0.00022528,2]
[372882353,1752791450021,-493.51,0.00022528,2]
[372882354,1752791450030,-482.4,0.00022528,2]
[372882355,1752791450040,-460.0,0.00022528,2]
[372882356,1752791450050,-720.78,0.00022528,2]
[372882357,1752791450059,-1521.8,0.00022528,2]
[372882358,1752791450069,-556.21,0.00022528,2]
[372882359,1752791450079,-513.87,0.00022528,2]
[372882360,1752791450088,-743.51,0.00022528,2]
[372882361,1752791450098,-643.68,0.00022528,2]
[372882362,1752791450107,-827.97,0.00022528,2]
[372882363,1752791450117,-156.88872,0.00022528,7]
[372882364,1752791450126,-156.88872,0.00022528,7]
[372882365,1752791450140,-491.62,0.00022528,2]
[372882366,1752791450150,-2715.03,0.00022528,2]
[372882367,1752791450160,-585.93,0.00022528,2]
[372882368,1752791450170,-1644.73,0.00022529,2]
[372882369,1752791450182,-1017.58,0.00022529,2]
[372882370,1752791450191,-626.49,0.00022529,2]
[372882371,1752791450201,-901.81,0.00022529,2]
[372882372,1752791450214,-3044.32,0.00022529,2]
[372882373,1752791450224,-1223.07,0.00022529,2]
[372882374,1752791450234,-574.67,0.0002253,2]
[372882375,1752791450244,-461.84,0.0002253,2]
[372882376,1752791450254,-3218.94,0.0002253,2]
[372882377,1752791450265,-752.49,0.0002253,2]
[372882378,1752791450275,-852.82,0.0002253,2]
[372882379,1752791450286,-159.7589235,0.00022548,2]
[372882380,1752791450296,-178.0508326,0.00022548,2]
[372882381,1752791450306,-150.0,0.00022585,2]
[372882382,1752791450316,-203.39,0.00022684,2]
[372882383,1752791450327,-1232.95003817,0.00022801,2]
[372882384,1752791450337,-2148.19568915,0.00022802,2]
[372882385,1752791450347,-1518.61,0.00022802,2]
[372882386,1752791450356,-493.67754198,0.00022802,2]
[372882387,1752791450366,-482.41383468,0.00022802,2]
[372882388,1752791450375,-400.7232407,0.00022802,2]
[372882389,1752791450384,-720.83,0.00022802,2]
[372882390,1752791450394,-1521.90937505,0.00022802,2]
[372882391,1752791450404,-556.26430456,0.00022802,2]
[372882392,1752791450413,-514.1,0.00022802,2]
[372882393,1752791450423,-743.52,0.00022802,2]
[372882394,1752791450432,-643.85,0.00022802,2]
[372882395,1752791450442,-828.07143,0.00022802,2]
[372882396,1752791450453,-491.74,0.00022802,2]
[372882397,1752791450462,-2715.12649163,0.00022802,2]
[372882398,1752791450472,-586.11967311,0.00022802,2]
[372882399,1752791450482,-1644.90533492,0.00022803,2]
[372882400,1752791450491,-1017.67,0.00022803,2]
[372882401,1752791450502,-626.59,0.00022803,2]
[372882402,1752791450512,-902.04,0.00022803,2]
[372882403,1752791450522,-3044.46408973,0.00022803,2]
[372882404,1752791450532,-1223.1267181,0.00022803,2]
[372882405,1752791450541,-574.68311645,0.00022804,2]
[372882406,1752791450551,-462.03,0.00022804,2]
[372882407,1752791450560,-3219.0009629,0.00022804,2]
[372882408,1752791450570,-752.5,0.00022804,2]
[372882409,1752791450580,-852.96199663,0.00022804,2]
[372882410,1752791450590,-500.0,0.00022808,2]
[372882411,1752791450599,-151.0,0.00022816,7]
[372882412,1752791450609,-215.0738,0.00022876,2]
[372882413,1752791450619,-501.96,0.00022925,3]
[372882414,1752791450629,-466.89406277,0.00022949,2]
[372882415,1752791450639,-1622.99068755,0.0002296,2]
[372882416,1752791450649,-3000.0,0.00023,2]
[372882417,1752791450749,-3000.0,0.0002301,2]
[372882418,1752791450760,-3000.0,0.0002302,2]
[372882419,1752791450772,-501.96,0.00023025,2]
[372882420,1752791450782,-3000.0,0.0002303,2]
[372882421,1752791450799,-151.0,0.0002303,7]
[372882422,1752791450814,-151.0,0.0002303,7]
[372882423,1752791450824,-151.0,0.0002303,7]
[372882424,1752791450834,-151.0,0.0002303,7]
[372882425,1752791450844,-3000.0,0.0002304,2]
[372882426,1752791450855,-3000.0,0.0002305,2]
[372882427,1752791450865,-3000.0,0.0002306,2]
[372882428,1752791450875,-4000.0,0.00023066,4]
[372882429,1752791450885,-3000.0,0.0002307,2]
[372882430,1752791450895,-3000.0,0.0002308,2]
[372882431,1752791450906,-3140.214406,0.0002309,2]
[372882432,1752791450915,-501.96,0.00023125,2]
[372882433,1752791450925,-151.0,0.000232,5]
[372882434,1752791450934,-576.2009174,0.00023205,2]
[372882435,1752791450944,-159.5390662,0.00023205,2]
[372882436,1752791450954,-177.9047646,0.00023205,2]
[372882437,1752791450966,-2200.0,0.0002321,2]
[372882438,1752791450976,-501.96,0.00023225,6]
[372882439,1752791450986,-678.311943,0.00023253,2]
[372882440,1752791450995,-501.96,0.00023325,7]
[372882441,1752791451005,-15665.81,0.000234,7]
[372882442,1752791451015,-501.96,0.00023425,4]
[372882443,1752791451024,-3327.93,0.000235,7]
[372882444,1752791451034,-1514.61,0.000235,7]
[372882445,1752791451044,-151.0,0.000235,9]
[372882446,1752791451053,-28925.41,0.000235,2]
[372882447,1752791451063,-151.0,0.000235,7]
[372882448,1752791451073,-501.96,0.00023525,3]
[372882449,1752791451083,-1152.0,0.00023527,2]
[372882450,1752791451092,-501.96,0.00023625,5]
[372882451,1752791451101,-818.55438588,0.000237,30]
[372882452,1752791451111,-501.96,0.00023725,4]
[372882453,1752791451121,-172.021611,0.00023744,2]
[372882454,1752791451133,-501.96,0.00023825,7]
[372882455,1752791451142,-154.815822,0.00023882,2]
[372882456,1752791451152,-154.815822,0.000239,6]
[372882457,1752791451161,-150.0,0.000239,2]
[372882458,1752791451171,-500.0,0.00023904,2]
[372882459,1752791451181,-501.96,0.00023925,3]
[372882460,1752791451190,-1658.665273,0.0002396,5]
[372882461,1752791451199,-1000.0,0.0002398,5]
[372882462,1752791451209,-2000.0,0.00024,2]
[372882463,1752791451219,-230.85589339,0.00024,7]
[372882464,1752791451228,-160.0,0.00024,7]
[372882465,1752791451237,-151.0,0.00024,7]
[372882466,1752791451247,-1000.0,0.00024,5]
[372882467,1752791451256,-160.0,0.00024,7]
[372882468,1752791451267,-1000.0,0.00024,2]
[372882469,1752791451276,-160.0,0.00024,7]
[372882470,1752791451286,-215.59244943,0.00024,7]
[372882471,1752791451296,-525.67742785,0.00024,7]
[372882472,1752791451305,-839.15451687,0.00024,7]
[372882473,1752791451315,-150.0,0.00024018,2]
[372882474,1752791451325,-501.96,0.00024025,7]
[372882475,1752791451334,-501.96,0.00024125,3]
[372882476,1752791451344,-501.96,0.00024225,7]
[372882477,1752791451355,-223.0315306,0.00024245,2]
[372882478,1752791451365,-466.89406277,0.00024258,2]
[372882479,1752791451374,-168.0,0.00024267,2]
[372882480,1752791451383,-150.0,0.00024308,2]
[372882481,1752791451393,-150.0,0.00024308,2]
[372882482,1752791451403,-501.96,0.00024325,4]
[372882483,1752791451412,-10197.75210758,0.0002439,2]
[372882484,1752791451422,-502.08072339,0.00024425,5]
[372882485,1752791451431,-2155.0,0.00024429,2]
[372882486,1752791451440,-968.0,0.00024429,2]
[372882487,1752791451450,-407.0,0.00024429,2]
[372882488,1752791451459,-203.39,0.00024478,2]
[372882489,1752791451468,-648.432847,0.000245,8]
[372882490,1752791451478,-15665.81,0.000245,7]
[372882491,1752791451487,-1000.0,0.000245,2]
[372882492,1752791451497,-476.16111942,0.000245,7]
[372882493,1752791451508,-160.0,0.000245,7]
[372882494,1752791451518,-525.67742785,0.000245,7]
[372882495,1752791451527,-200.0,0.000245,2]
[372882496,1752791451537,-175223.60918982,0.0002465,2]
[372882497,1752791451547,-500.0,0.00024673,2]
[372882498,1752791451556,-429.1687796,0.00024685,2]
[372882499,1752791451566,-3304.37008719,0.000247,4]
[372882500,1752791451575,-1912.9957299,0.000247,2]
[372882501,1752791451585,-5000.0,0.00024704,3]
[372882502,1752791451595,-248.34584934,0.00024756,2]
[372882503,1752791451605,-219.8559037,0.00024756,2]
[372882504,1752791451616,-151.0,0.00024756,2]
[372882505,1752791451625,-245.0,0.00024756,2]
[372882506,1752791451634,-500.0,0.00024756,2]
[372882507,1752791451644,-151.0,0.00024756,2]
[372882508,1752791451654,-151.0,0.00024756,2]
[372882509,1752791451664,-151.0,0.00024756,2]
[372882510,1752791451674,-151.0,0.00024756,2]
[372882511,1752791451683,-151.0,0.00024756,2]
[372882512,1752791451692,-780.0,0.00024756,2]
[372882513,1752791451702,-500.0,0.00024756,2]
[372882514,1752791451711,-246.0,0.00024789,2]
[372882515,1752791451721,-1912.99572982,0.00024796,2]
[372882516,1752791451731,-200.84977966,0.00024799,2]
[372882517,1752791451740,-3327.93,0.000248,7]
[372882518,1752791451750,-151.0,0.000248,7]
[372882519,1752791451760,-151.0,0.000248,7]
[372882520,1752791451771,-28925.41,0.000248,2]
[372882521,1752791451780,-732.230122,0.000248,7]
[372882522,1752791451789,-732.230122,0.000248,7]
[372882523,1752791451798,-151.0,0.000248,7]
[372882524,1752791451807,-151.0,0.000248,7]
[372882525,1752791451817,-151.0,0.000248,7]
[372882526,1752791451826,-151.0,0.000248,7]
[372882527,1752791451836,-151.0,0.000248,7]
[372882528,1752791451846,-151.0,0.000248,7]
[372882529,1752791451855,-151.0,0.000248,7]
[372882530,1752791451866,-151.0,0.000248,7]
[372882531,1752791451875,-151.0,0.000248,7]
[372882532,1752791451884,-295.574658,0.000248,7]
[372882533,1752791451894,-151.0,0.000248,7]
[372882534,1752791451903,-152.29328,0.000248,7]
[372882535,1752791451912,-151.0,0.000248,7]
[372882536,1752791451921,-151.0,0.000248,7]
[372882537,1752791451931,-151.0,0.000248,7]
[372882538,1752791451940,-151.0,0.000248,7]
[372882539,1752791451949,-151.0,0.000248,7]
[372882540,1752791451961,-363.07898504,0.000248,2]
[372882541,1752791451981,-32795.6822998,0.000248,2]
[372882542,1752791451991,-156.88872,0.000248,7]
[372882543,1752791452001,-156.88872,0.000248,7]
[372882544,1752791452010,-390.3536995,0.00024822,2]
[372882545,1752791452020,-151.0,0.0002489,7]
[372882546,1752791452030,-1912.99572982,0.00024893,2]
[372882547,1752791452039,-1514.61,0.000249,7]
[372882548,1752791452048,-151.0,0.000249,7]
[372882549,1752791452058,-151.0,0.000249,7]
[372882550,1752791452068,-151.0,0.000249,7]
[372882551,1752791452077,-151.0,0.000249,7]
[372882552,1752791452086,-230.85589339,0.000249,7]
[372882553,1752791452096,-151.0,0.000249,7]
[372882554,1752791452106,-151.0,0.000249,7]
[372882555,1752791452115,-151.0,0.000249,7]
[372882556,1752791452126,-151.0,0.000249,7]
[372882557,1752791452139,-151.0,0.000249,7]
[372882558,1752791452148,-151.0,0.000249,7]
[372882559,1752791452158,-151.0,0.000249,7]
[372882560,1752791452167,-151.0,0.000249,7]
[372882561,1752791452177,-151.0,0.000249,7]
[372882562,1752791452187,-151.0,0.000249,7]
[372882563,1752791452198,-151.0,0.000249,7]
[372882564,1752791452209,-151.0,0.000249,7]
[372882565,1752791452219,-151.0,0.000249,7]
[372882566,1752791452228,-151.0,0.000249,7]
[372882567,1752791452238,-151.0,0.000249,7]
[372882568,1752791452248,-151.0,0.000249,7]
[372882569,1752791452258,-1152.259355,0.000249,7]
[372882570,1752791452268,-1152.259355,0.000249,7]
[372882571,1752791452277,-151.0,0.000249,7]
[372882572,1752791452286,-151.0,0.000249,7]
[372882573,1752791452298,-151.0,0.000249,7]
[372882574,1752791452308,-151.0,0.000249,7]
[372882575,1752791452317,-176.544078,0.000249,7]
[372882576,1752791452327,-151.0,0.000249,7]
[372882577,1752791452336,-151.0,0.000249,7]
[372882578,1752791452345,-151.0,0.000249,7]
[372882579,1752791452355,-151.0,0.000249,7]
[372882580,1752791452364,-166348.75668,0.000249,2]
[372882581,1752791452443,-555.55569991,0.000249,2]
[372882582,1752791452455,-427.97589205,0.000249,2]
[372882583,1752791452988,-151.0,0.000215,2]
[372882584,1752791452998,-151.0,0.00021507,2]
[372882585,1752791453007,-240.1063831,0.00021507,2]
[372882586,1752791453019,-151.0,0.0002307,7]
[372882587,1752791453029,-500.0,0.00024756,2]
[372882588,1752791453038,-1365.64529698,0.000249,2]
[372882589,1752791455250,-460.0,0.000165,2]
[372882590,1752791455260,-497.97926168,0.000165,2]
[372882591,1752791455270,-460.0,0.00016502,2]
[372882592,1752791455279,-647.0,0.0002112,2]
[372882593,1752791455288,-647.0,0.0002412,2]
[372882594,1752791455298,-208.34536538,0.000249,2]
[372882598,1752791491644,410.75752,0.00013699,2]
[372882602,1752791556379,150.0,0.00015529,2]
[372882603,1752791589717,6644.6422987,0.00015501,2]
[372882605,1752791693158,150.0,0.0001553,2]
[372882607,1752791766484,150.0,0.00015529,2]
[372882608,1752791780487,3081.84103085,0.000161,2]
[372882609,1752791877513,12014.0,0.00025637,50]
[372882610,1752791979512,150.0,0.00015518,2]
[372882611,1752792117626,500.0,0.00015922,2]
[372882613,1752792122327,500.0,0.00015922,2]
[372882615,1752792146736,-169.0,0.00016372,2]
[372882617,1752792198370,150.0,0.00015499,2]
[372882629,1752792277680,-118.55186476,0.00016372,2]
[372882630,1752792277705,-341.44813524,0.00016389,2]
[372882632,1752792353125,-100.93795414,0.00016389,2]
[372882633,1752792353148,-213.53338109,0.00016399,2]
[372882634,1752792362419,339.155972,0.00015472,2]
[372882635,1752792386751,-226.49149221,0.00016258,2]
[372882636,1752792397374,-73.50850779,0.00016258,2]
[372882637,1752792435098,-2369.56142876,0.00016399,2]
[372882638,1752792435122,-500.0,0.0001647,2]
[372882639,1752792435144,-422.9958402,0.0001647,2]
[372882640,1752792435324,-500.0,0.0001647,2]
[372882641,1752792435348,-485.57274056,0.0001647,2]
[372882642,1752792435369,-503.58161118,0.0001647,2]
[372882643,1752792435390,-183.47667746,0.0001647,2]
[372882644,1752792435412,-409.86540224,0.0001647,2]
[372882645,1752792435433,-500.0,0.0001647,2]
[372882646,1752792435456,-500.0,0.0001647,2]
[372882647,1752792435480,-500.0,0.0001647,2]
[372882648,1752792435504,-500.0,0.0001647,2]
[372882649,1752792435527,-500.0,0.0001647,2]
[372882650,1752792435549,-500.0,0.0001647,2]
[372882651,1752792435571,-500.0,0.0001647,2]
[372882652,1752792435596,-396.13767957,0.0001647,2]
[372882653,1752792435618,-302.04407477,0.0001647,2]
[372882654,1752792435639,-500.0,0.0001647,2]
[372882655,1752792435660,-500.0,0.0001647,2]
[372882656,1752792435686,-500.0,0.0001647,2]
[372882657,1752792435709,-500.0,0.0001647,2]
[372882658,1752792435733,-500.0,0.0001647,2]
[372882659,1752792435753,-641.96036549,0.0001647,2]
[372882660,1752792435776,-500.0,0.0001647,2]
[372882661,1752792435797,-500.0,0.0001647,2]
[372882662,1752792435818,-500.0,0.0001647,2]
[372882663,1752792435843,-500.0,0.0001647,2]
[372882664,1752792435865,-501.58526027,0.0001647,2]
[372882665,1752792435888,-500.0,0.0001647,2]
[372882666,1752792435910,-500.0,0.0001647,2]
[372882667,1752792435932,-500.0,0.0001647,2]
[372882668,1752792435952,-500.0,0.0001647,2]
[372882669,1752792435975,-500.0,0.0001647,2]
[372882670,1752792435996,-500.0,0.0001647,2]
[372882671,1752792436018,-500.0,0.0001647,2]
[372882672,1752792436042,-500.0,0.0001647,2]
[372882673,1752792436064,-500.0,0.0001647,2]
[372882674,1752792436088,-500.0,0.0001647,2]
[372882675,1752792436109,-255.61559815,0.0001647,2]
[372882676,1752792436132,-500.0,0.0001647,2]
[372882677,1752792436155,-500.0,0.0001647,2]
[372882678,1752792436178,-500.0,0.0001647,2]
[372882679,1752792436202,-500.0,0.0001647,2]
[372882680,1752792436228,-500.0,0.0001647,2]
[372882681,1752792436251,-500.0,0.0001647,2]
[372882682,1752792436276,-500.0,0.0001647,2]
[372882683,1752792436300,-500.0,0.0001647,2]
[372882684,1752792436324,-500.0,0.0001647,2]
[372882685,1752792436350,-511.02814074,0.0001647,2]
[372882686,1752792436373,-500.0,0.0001647,2]
[372882687,1752792436396,-500.0,0.0001647,2]
[372882688,1752792436424,-550.0,0.0001647,2]
[372882689,1752792436448,-500.0,0.0001647,2]
[372882690,1752792436473,-500.0,0.0001647,2]
[372882691,1752792436498,-500.0,0.0001647,2]
[372882692,1752792436522,-500.0,0.0001647,2]
[372882693,1752792436545,-500.0,0.0001647,2]
[372882694,1752792436568,-600.0,0.0001647,2]
[372882695,1752792436590,-300.0,0.0001647,2]
[372882696,1752792436610,-300.0,0.0001647,2]
[372882697,1752792436631,-727.0,0.0001647,2]
[372882698,1752792436652,-23942.71778772,0.00016471,2]
[372882700,1752792453100,-460.0,0.00016469,2]
[372882701,1752792453125,-26057.28221228,0.00016471,2]
[372882702,1752792453149,-460.0,0.00016471,2]
[372882703,1752792453173,-460.0,0.00016471,2]
[372882704,1752792453197,-460.0,0.00016471,2]
[372882705,1752792453223,-460.0,0.00016471,2]
[372882706,1752792453249,-444.86225772,0.00016471,2]
[372882707,1752792453276,-460.0,0.00016471,2]
[372882708,1752792453303,-460.0,0.00016471,2]
[372882709,1752792453330,-460.0,0.00016471,2]
[372882710,1752792453363,-245.93149387,0.00016471,2]
[372882711,1752792453390,-460.0,0.00016471,2]
[372882712,1752792453421,-460.0,0.00016471,2]
[372882713,1752792453446,-460.0,0.00016471,2]
[372882714,1752792453471,-460.0,0.00016471,2]
[372882715,1752792453497,-460.0,0.00016471,2]
[372882716,1752792453521,-460.0,0.00016471,2]
[372882717,1752792453550,-460.0,0.00016471,2]
[372882718,1752792453574,-460.0,0.00016471,2]
[372882719,1752792453598,-460.0,0.00016471,2]
[372882720,1752792453627,-199.17324625,0.00016471,2]
[372882721,1752792453652,-460.0,0.00016471,2]
[372882722,1752792453674,-460.0,0.00016471,2]
[372882723,1752792453698,-460.0,0.00016471,2]
[372882724,1752792453726,-460.0,0.00016472,2]
[372882725,1752792453749,-1048.65962984,0.00016472,2]
[372882726,1752792453771,-460.0,0.00016472,2]
[372882727,1752792453793,-460.0,0.00016472,2]
[372882728,1752792453818,-460.0,0.00016472,2]
[372882729,1752792453841,-460.0,0.00016472,2]
[372882730,1752792453868,-460.0,0.00016472,2]
[372882731,1752792453891,-460.0,0.00016472,2]
[372882732,1752792453913,-460.0,0.00016472,2]
[372882733,1752792453936,-460.0,0.00016472,2]
[372882734,1752792453958,-460.0,0.00016472,2]
[372882735,1752792453987,-460.0,0.00016472,2]
[372882736,1752792454010,-460.0,0.00016472,2]
[372882737,1752792454035,-460.0,0.00016472,2]
[372882738,1752792454058,-460.0,0.00016472,2]
[372882739,1752792454080,-460.0,0.00016472,2]
[372882740,1752792454109,-460.0,0.00016472,2]
[372882741,1752792454132,-460.0,0.00016472,2]
[372882742,1752792454155,-460.0,0.00016472,2]
[372882743,1752792454179,-460.0,0.00016472,2]
[372882744,1752792454202,-460.0,0.00016472,2]
[372882745,1752792454225,-460.0,0.00016472,2]
[372882746,1752792454247,-460.0,0.00016472,2]
[372882747,1752792454272,-1346.76,0.00016472,2]
[372882748,1752792454421,-460.0,0.00016472,2]
[372882749,1752792454443,-554.92615836,0.00016472,2]
[372882750,1752792454468,-4070.81,0.00016472,2]
[372882751,1752792454492,-460.0,0.00016472,2]
[372882752,1752792454514,-460.0,0.00016472,2]
[372882753,1752792454536,-460.0,0.00016472,2]
[372882754,1752792454557,-460.0,0.00016472,2]
[372882755,1752792454579,-460.0,0.00016472,2]
[372882756,1752792454604,-500.0,0.00016473,2]
[372882757,1752792454624,-500.0,0.00016473,2]
[372882758,1752792454647,-500.0,0.00016473,2]
[372882759,1752792454668,-500.0,0.00016473,2]
[372882760,1752792454689,-500.0,0.00016473,2]
[372882761,1752792454711,-500.0,0.00016473,2]
[372882762,1752792454732,-379.58287166,0.00016473,2]
[372882763,1752792454752,-500.0,0.00016473,2]
[372882764,1752792454772,-155.12534803,0.00016473,2]
[372882765,1752792454793,-500.0,0.00016473,2]
[372882766,1752792454814,-500.0,0.00016473,2]
[372882767,1752792454835,-252.5706873,0.00016489,2]
[372882768,1752792454858,-460.0,0.00016494,2]
[372882769,1752792454880,-460.0,0.00016494,2]
[372882770,1752792454901,-460.0,0.00016494,2]
[372882771,1752792454922,-460.0,0.00016494,2]
[372882772,1752792454944,-460.0,0.00016494,2]
[372882773,1752792454964,-460.0,0.00016494,2]
[372882774,1752792454985,-460.0,0.00016494,2]
[372882775,1752792455006,-460.0,0.00016494,2]
[372882776,1752792455027,-460.0,0.00016494,2]
[372882777,1752792455047,-460.0,0.00016494,2]
[372882778,1752792455067,-568.17068683,0.00016494,2]
[372882779,1752792455087,-460.0,0.00016494,2]
[372882780,1752792455112,-460.0,0.00016494,2]
[372882781,1752792455132,-460.0,0.00016495,2]
[372882782,1752792455154,-460.0,0.00016495,2]
[372882783,1752792455175,-460.0,0.00016495,2]
[372882784,1752792455196,-460.86753428,0.00016495,2]
[372882785,1752792455216,-460.0,0.00016495,2]
[372882786,1752792455237,-460.0,0.00016495,2]
[372882787,1752792455258,-460.0,0.00016495,2]
[372882788,1752792455279,-460.0,0.00016495,2]
[372882789,1752792455302,-460.0,0.00016495,2]
[372882790,1752792455323,-460.0,0.00016495,2]
[372882791,1752792455345,-460.0,0.00016495,2]
[372882792,1752792455371,-460.0,0.00016495,2]
[372882793,1752792455393,-460.0,0.00016495,2]
[372882794,1752792455419,-460.0,0.00016495,2]
[372882795,1752792455442,-460.0,0.00016495,2]
[372882796,1752792455465,-460.0,0.00016495,2]
[372882797,1752792455489,-460.0,0.00016495,2]
[372882798,1752792455511,-460.0,0.00016495,2]
[372882799,1752792455532,-460.0,0.00016495,2]
[372882800,1752792455555,-460.0,0.00016495,2]
[372882801,1752792455588,-2227.6,0.00016495,2]
[372882802,1752792455624,-3179.19,0.00016495,2]
[372882803,1752792455650,-460.0,0.00016495,2]
[372882804,1752792455681,-500.0,0.00016495,2]
[372882805,1752792455710,-500.0,0.00016495,2]
[372882806,1752792455739,-500.0,0.00016495,2]
[372882807,1752792455769,-460.0,0.00016495,2]
[372882808,1752792455797,-878.48,0.00016495,2]
[372882809,1752792455823,-460.0,0.00016495,2]
[372882810,1752792455857,-460.0,0.00016495,2]
[372882811,1752792455883,-460.0,0.00016495,2]
[372882812,1752792455909,-460.0,0.00016495,2]
[372882813,1752792455936,-460.0,0.00016495,2]
[372882814,1752792455965,-460.0,0.00016495,2]
[372882815,1752792455995,-460.0,0.00016495,2]
[372882816,1752792456027,-2620.11,0.00016495,2]
[372882817,1752792456051,-460.0,0.00016495,2]
[372882818,1752792456076,-460.0,0.00016495,2]
[372882819,1752792456112,-460.0,0.00016495,2]
[372882820,1752792456137,-460.0,0.00016495,2]
[372882821,1752792456164,-196.70955208,0.00016495,2]
[372882822,1752792456192,-460.0,0.00016495,2]
[372882823,1752792456216,-596.42531374,0.00016495,2]
[372882824,1752792456242,-460.0,0.00016495,2]
[372882825,1752792456267,-460.0,0.00016495,2]
[372882826,1752792456295,-1567.94,0.00016495,2]
[372882827,1752792456322,-664.43,0.00016495,2]
[372882828,1752792456347,-460.0,0.00016495,2]
[372882829,1752792456379,-460.0,0.00016495,2]
[372882830,1752792456405,-460.0,0.00016495,2]
[372882831,1752792456435,-460.0,0.00016495,2]
[372882832,1752792456462,-460.0,0.00016495,2]
[372882833,1752792456488,-460.0,0.00016495,2]
[372882834,1752792456515,-460.0,0.00016495,2]
[372882835,1752792456541,-460.0,0.00016495,2]
[372882836,1752792456567,-460.0,0.00016495,2]
[372882837,1752792456592,-460.0,0.00016495,2]
[372882838,1752792456620,-460.0,0.00016495,2]
[372882839,1752792456645,-460.0,0.00016495,2]
[372882840,1752792456672,-558.89,0.00016495,2]
[372882841,1752792456698,-460.0,0.00016495,2]
[372882842,1752792456724,-460.0,0.00016495,2]
[372882843,1752792456750,-597.79708008,0.00016495,2]
[372882844,1752792456775,-460.0,0.00016495,2]
[372882845,1752792456801,-460.0,0.00016495,2]
[372882846,1752792456827,-460.0,0.00016495,2]
[372882847,1752792456856,-460.0,0.00016495,2]
[372882848,1752792456883,-460.0,0.00016495,2]
[372882849,1752792456910,-460.0,0.00016495,2]
[372882850,1752792456937,-460.0,0.00016495,2]
[372882851,1752792456962,-460.0,0.00016495,2]
[372882852,1752792456988,-460.0,0.00016495,2]
[372882853,1752792457013,-460.0,0.00016495,2]
[372882854,1752792457187,-509.26,0.00016495,2]
[372882855,1752792457214,-460.0,0.00016495,2]
[372882856,1752792457237,-460.0,0.00016495,2]
[372882857,1752792457258,-504.22,0.00016495,2]
[372882858,1752792457280,-460.0,0.00016495,2]
[372882859,1752792457301,-460.0,0.00016495,2]
[372882860,1752792457323,-553.36,0.00016495,2]
[372882861,1752792457346,-460.0,0.00016495,2]
[372882862,1752792457371,-460.0,0.00016495,2]
[372882863,1752792457392,-460.0,0.00016495,2]
[372882864,1752792457414,-500.0,0.00016495,2]